bitfinex/quotes_ETHUSD_20250214
["timestamp","ask_amount","ask_price","bid_price","bid_amount"]
[1739504246306,6.9e-06,2702.8,2702.7,3.7]
[1739504246530,6.9e-06,2702.8,2702.7,3.9472454]
[1739504246869,6.9e-06,2702.8,2702.7,3.98424073]
[1739504247064,6.9e-06,2702.8,2702.7,3.9472454]
[1739504247266,6.9e-06,2702.8,2702.7,4.57323067]
[1739504249618,6.9e-06,2702.8,2702.7,0.87323067]
[1739504249980,0.7959069,2702.8,2702.7,0.2472454]
[1739504250137,4.4957669,2702.8,2702.7,0.2472454]
[1739504250348,3.7002,2702.6,2702.1,3.70074]
[1739504250650,0.7959,2702.5,2702.1,3.70078]
[1739504250794,0.8076069,2702.8,2702.4,3.70041]
[1739504250991,0.8076069,2702.8,2702.5,3.70016]
[1739504251309,0.8076069,2702.8,2702.6,3.70013]
[1739504251509,6.9e-06,2702.8,2702.7,3.93863742]
[1739504251712,6.9e-06,2702.8,2702.7,4.82027887]
[1739504251910,6.9e-06,2702.8,2702.7,4.78328416]
[1739504252509,6.9e-06,2702.8,2702.7,4.82027914]
[1739504253144,6.9e-06,2702.8,2702.7,7.78328416]
[1739504254274,6.9e-06,2702.8,2702.7,8.61478416]
[1739504254772,6.9e-06,2702.8,2702.7,8.95885088]
[1739504263888,6.9e-06,2702.8,2702.7,8.12735088]
[1739504264102,0.7530069,2702.8,2702.7,0.58270414]
[1739504264454,0.7530069,2702.8,2702.7,3.93863742]
[1739504265087,6.9e-06,2702.8,2702.7,3.93863742]
[1739504268376,6.9e-06,2702.8,2702.7,3.97563338]
[1739504269913,6.9e-06,2702.8,2702.7,6.93863742]
[1739504270077,6.9e-06,2702.8,2702.7,8.51343337]
[1739504270274,6.9e-06,2702.8,2702.7,8.47644214]
[1739504271505,6.9e-06,2702.8,2702.7,8.82098212]
[1739504274540,6.9e-06,2702.8,2702.7,9.59718212]
[1739504289847,6.9e-06,2702.8,2702.7,6.59718212]
[1739504290099,6.9e-06,2702.8,2702.7,5.82098212]
[1739504290289,6.9e-06,2702.8,2702.7,5.47644214]
[1739504290494,6.9e-06,2702.8,2702.7,8.47644214]
[1739504292510,6.9e-06,2702.8,2702.7,6.93863742]
[1739504295524,0.8266069,2702.8,2702.7,6.93863742]
[1739504296300,0.8266069,2702.8,2702.7,3.93863742]
[1739504297424,0.8266069,2702.8,2702.7,6.93863742]
[1739504297983,0.8266069,2702.8,2702.7,3.23863742]
[1739504298453,0.8266069,2702.8,2702.7,6.93863742]
[1739504298857,6.9e-06,2702.8,2702.7,6.93863742]
[1739504299076,6.9e-06,2702.8,2702.7,8.07532119]
[1739504300537,6.9e-06,2702.8,2702.7,8.88382119]
[1739504301656,6.9e-06,2702.8,2702.7,8.07532119]
[1739504302031,6.9e-06,2702.8,2702.7,6.93863742]
[1739504304346,0.8134069,2702.8,2702.7,6.93863742]
[1739504310068,0.8134069,2702.8,2702.7,0.23863742]
[1739504310238,0.8134069,2702.8,2702.4,7.40064]
[1739504310446,0.8134069,2702.8,2702.5,3.0]
[1739504310776,0.7728,2702.6,2702.5,0.23751937]
[1739504310974,1.59006869,2702.6,2702.5,0.23751937]
[1739504311134,0.8298,2702.5,2702.2,3.70066]
[1739504311336,0.8298,2702.5,2702.3,0.22563648]
[1739504311675,0.8298,2702.5,2702.2,3.0]
[1739504311875,0.8298,2702.5,2702.4,0.21745214]
[1739504312491,0.8298,2702.5,2702.2,3.0]
[1739504312671,0.8298,2702.5,2702.4,0.21745214]
[1739504313288,0.8298,2702.5,2702.2,3.0]
[1739504313493,0.8298,2702.5,2702.4,0.21745214]
[1739504313642,0.8298,2702.5,2702.2,3.0]
[1739504313840,0.8298,2702.5,2701.8,3.70115]
[1739504313841,3.70043,2702.4,2701.8,3.70115]
[1739504314067,3.70043,2702.4,2701.9,3.70108]
[1739504314264,0.7927,2702.3,2702.0,0.21745214]
[1739504314504,0.7927,2702.3,2701.6,0.74785888]
[1739504314694,0.7927,2702.3,2702.0,3.70087]
[1739504315101,0.7927,2702.3,2702.1,0.21745214]
[1739504315761,0.7927,2702.3,2702.1,3.91818214]
[1739504316721,0.7927,2702.3,2702.2,3.70068]
[1739504317164,0.7927,2702.3,2702.2,3.91813214]
[1739504317980,0.7831,2702.7,2702.5,3.70017]
[1739504318197,0.7831,2702.7,2702.5,7.40036]
[1739504319486,0.7831,2702.7,2702.6,3.91759214]
[1739504319818,0.7831,2702.7,2702.6,0.21745214]
[1739504320466,0.7831,2702.7,2702.6,3.91759214]
[1739504322567,6.9e-06,2702.8,2702.7,3.7]
[1739504322766,6.9e-06,2702.8,2702.7,3.91843133]
[1739504323263,6.9e-06,2702.8,2702.7,4.68028846]
[1739504323467,6.9e-06,2702.8,2702.7,7.71728466]
[1739504323667,6.9e-06,2702.8,2702.7,7.68028846]
[1739504325579,6.9e-06,2702.8,2702.7,6.91843133]
[1739504328787,6.9e-06,2702.8,2702.7,6.95542702]
[1739504329067,6.9e-06,2702.8,2702.7,6.91843133]
[1739504332638,6.9e-06,2702.8,2702.7,6.95542702]
[1739504332939,6.9e-06,2702.8,2702.7,3.21843133]
[1739504333143,0.7546069,2702.8,2702.7,3.21843133]
[1739504333746,0.7546069,2702.8,2702.7,0.21843133]
[1739504333941,0.7546069,2702.8,2702.3,3.70044]
[1739504334119,1.20004059,2702.8,2702.4,0.21798547]
[1739504334322,0.44544059,2702.8,2702.4,0.21798547]
[1739504334577,3.70024,2702.6,2702.0,3.7009]
[1739504334874,0.7546,2702.5,2702.0,3.7009]
[1739504335264,0.7546,2702.5,2701.9,6.701]
[1739504335954,0.7546,2702.5,2702.0,3.70085]
[1739504336159,0.7546,2702.5,2702.1,3.70072]
[1739504336511,0.7546,2702.5,2702.2,3.70057]
[1739504336966,0.7546,2702.5,2702.1,3.70072]
[1739504337648,0.7546,2702.5,2702.2,3.70065]
[1739504339522,0.7546,2702.5,2702.2,7.40123]
[1739504339723,0.7546,2702.5,2702.2,3.70058]
[1739504341267,0.7546,2702.5,2702.3,3.70046]
[1739504342138,0.7546,2702.5,2702.2,3.70058]
[1739504344073,0.7546,2702.5,2702.0,3.70089]
[1739504344281,0.7546,2702.5,2702.0,7.40172]
[1739504344449,0.7546,2702.5,2702.2,3.70068]
[1739504345379,0.7546,2702.5,2702.1,3.70081]
[1739504345548,0.7546,2702.5,2702.2,3.7006]
[1739504347344,1.14047609,2702.5,2702.0,3.70083]
[1739504347544,0.7546,2702.5,2702.1,3.70081]
[1739504347745,0.7546,2702.5,2702.2,3.70067]
[1739504348057,0.7546,2702.5,2702.0,3.70083]
[1739504348385,0.7546,2702.5,2702.1,3.7008]
[1739504348556,0.7546,2702.5,2701.8,3.0]
[1739504348751,0.7546,2702.5,2702.2,3.7006]
[1739504348964,0.7546,2702.5,2702.2,7.4012]
[1739504349168,0.7546,2702.5,2702.2,3.70059]
[1739504349338,0.7546,2702.5,2702.3,3.91152797]
[1739504349784,0.7546,2702.5,2702.4,3.70041]
[1739504350293,0.7546,2702.5,2702.4,3.91145797]
[1739504351000,0.7897,2702.7,2702.5,3.70025]
[1739504351340,0.7897,2702.7,2702.6,0.21128194]
[1739504352367,6.9e-06,2702.8,2702.6,3.91142194]
[1739504352585,6.9e-06,2702.8,2702.7,3.7]
[1739504353098,6.9e-06,2702.8,2702.7,3.91118688]
[1739504355898,6.9e-06,2702.8,2702.7,4.74338688]
[1739504356107,6.9e-06,2702.8,2702.7,5.58773857]
[1739504356904,6.9e-06,2702.8,2702.7,4.75553857]
[1739504358274,6.9e-06,2702.8,2702.7,3.91118688]
[1739504358475,0.7740069,2702.8,2702.7,0.21118688]
[1739504358788,0.7740069,2702.8,2702.7,3.7]
[1739504358997,0.7740069,2702.8,2702.7,3.91053623]
[1739504359963,6.9e-06,2702.8,2702.7,3.91053623]
[1739504361301,6.9e-06,2702.8,2702.7,4.74854285]
[1739504364533,6.9e-06,2702.8,2702.7,7.74854285]
[1739504364714,6.9e-06,2702.8,2702.7,8.56324285]
[1739504369884,6.9e-06,2702.8,2702.7,4.04854285]
[1739504370091,6.9e-06,2702.8,2702.7,6.91053623]
[1739504379081,6.9e-06,2702.8,2702.7,7.71473623]
[1739504385939,6.9e-06,2702.8,2702.7,6.91053623]
[1739504387355,6.9e-06,2702.8,2702.7,7.25616812]
[1739504389465,6.9e-06,2702.8,2702.7,7.29315933]
[1739504389761,6.9e-06,2702.8,2702.7,8.82353752]
[1739504391928,6.9e-06,2702.8,2702.7,7.25616812]
[1739504393635,6.9e-06,2702.8,2702.7,8.12546246]
[1739504393962,6.9e-06,2702.8,2702.7,8.08846812]
[1739504394167,6.9e-06,2702.8,2702.7,7.25616812]
[1739504395386,6.9e-06,2702.8,2702.7,7.29316294]
[1739504396776,6.9e-06,2702.8,2702.7,7.25616812]
[1739504397744,0.8221069,2702.8,2702.7,7.25616812]
[1739504400611,0.8221069,2702.8,2702.7,0.55616812]
[1739504400752,0.8221069,2702.8,2702.7,4.25616812]
[1739504402382,6.9e-06,2702.8,2702.7,4.25616812]
[1739504403202,6.9e-06,2702.8,2702.7,8.05179793]
[1739504403497,6.9e-06,2702.8,2702.7,8.82419793]
[1739504408106,6.9e-06,2702.8,2702.7,9.58583317]
[1739504409014,6.9e-06,2702.8,2702.7,14.83583317]
[1739504409188,6.9e-06,2702.8,2702.7,18.56984271]
[1739504409384,6.9e-06,2702.8,2702.7,15.38583317]
[1739504410839,6.9e-06,2702.8,2702.7,18.56984271]
[1739504411343,6.9e-06,2702.8,2702.7,15.38583317]
[1739504411733,6.9e-06,2702.8,2702.7,14.83583317]
[1739504413798,6.9e-06,2702.8,2702.7,14.82083317]
[1739504414110,6.9e-06,2702.8,2702.7,11.82083317]
[1739504414339,6.9e-06,2702.8,2702.7,11.82833317]
[1739504414532,6.9e-06,2702.8,2702.7,14.83583317]
[1739504419980,6.9e-06,2702.8,2702.7,14.82083317]
[1739504420885,6.9e-06,2702.8,2702.7,14.83583317]
[1739504422278,6.9e-06,2702.8,2702.7,15.38583317]
[1739504422778,6.9e-06,2702.8,2702.7,18.56984271]
[1739504423075,6.9e-06,2702.8,2702.7,15.38583317]
[1739504423452,6.9e-06,2702.8,2702.7,14.83583317]
[1739504424280,6.9e-06,2702.8,2702.7,18.56984271]
[1739504424580,6.9e-06,2702.8,2702.7,22.77184271]
[1739504424881,6.9e-06,2703.4,2702.7,22.77184271]
[1739504425087,6.9e-06,2703.4,2703.3,10.70238954]
[1739504425436,6.9e-06,2703.4,2703.3,10.91155933]
[1739504426432,6.9e-06,2703.4,2703.3,11.25719122]
[1739504427311,0.00265834,2704.8,2704.7,3.69726]
[1739504427510,8.34e-06,2704.8,2704.7,10.25099554]
[1739504427848,8.34e-06,2704.8,2704.7,10.8046983]
[1739504429901,8.34e-06,2704.8,2704.7,17.65179159]
[1739504430047,8.34e-06,2704.8,2704.7,10.8046983]
[1739504432802,8.34e-06,2704.8,2704.7,10.88483923]
[1739504433147,8.34e-06,2704.8,2704.7,7.33110369]
[1739504433348,0.79350834,2704.8,2704.7,7.33110369]
[1739504433547,0.79350834,2704.8,2704.7,0.63384369]
[1739504435126,0.79350834,2704.8,2704.7,0.2882118]
[1739504435627,0.79350834,2704.8,2704.5,6.84709329]
[1739504435628,3.6974,2704.6,2703.9,3.69829]
[1739504435789,0.7935,2704.5,2704.0,3.6982]
[1739504436118,0.7935,2704.5,2704.0,3.97657025]
[1739504436272,1.28749588,2704.5,2704.0,3.97657025]
[1739504436473,0.7619,2704.4,2704.0,3.27837025]
[1739504436778,0.7619,2704.4,2704.2,3.69784]
[1739504437134,0.7619,2704.4,2704.3,0.27844325]
[1739504437590,0.7619,2704.4,2703.9,3.69831]
[1739504437786,0.7619,2704.2,2703.7,3.69861]
[1739504438052,0.7619,2704.2,2704.0,0.27850895]
[1739504438186,0.7619,2704.2,2703.7,3.69861]
[1739504438819,0.7619,2704.2,2703.8,0.27850895]
[1739504439119,0.7619,2704.2,2703.9,3.69834]
[1739504439323,0.7619,2704.2,2704.0,3.6982]
[1739504439627,0.7619,2704.2,2704.1,3.69808]
[1739504439826,0.7619,2704.2,2704.1,3.9767788]
[1739504440644,0.7619,2704.2,2704.1,0.2786988]
[1739504442581,0.7619,2704.2,2703.8,3.0]
[1739504442778,0.7619,2704.2,2704.1,0.27945059]
[1739504442976,0.782,2704.1,2703.7,3.0]
[1739504443211,0.782,2704.1,2704.0,3.69822]
[1739504447365,0.8045,2704.6,2704.3,3.69773]
[1739504447694,0.8045,2704.6,2704.5,3.69754]
[1739504449054,0.8045,2704.6,2704.5,3.97689567]
[1739504449944,0.0008,2704.8,2704.7,3.69726]
[1739504450347,0.0008,2704.8,2704.7,3.97644775]
[1739504450982,0.0008,2704.8,2704.7,0.27918775]
[1739504451668,2.56658119,2704.8,2704.7,0.27918775]
[1739504451985,2.56658119,2704.8,2704.4,3.69756]
[1739504452164,2.56658119,2704.8,2704.2,3.69788]
[1739504452347,2.56658119,2704.8,2704.3,3.6978]
[1739504452548,2.56658119,2704.8,2704.4,3.0]
[1739504452846,3.69741,2704.6,2704.3,0.27918775]
[1739504453050,4.51971,2704.6,2704.5,0.27847236]
[1739504453387,0.8223,2704.2,2703.7,3.69857]
[1739504453739,0.8223,2704.2,2703.8,0.2685045]
[1739504453933,5.92195,2704.2,2703.8,0.2685045]
[1739504454154,0.8223,2704.1,2703.8,0.2685045]
[1739504454354,0.8223,2704.1,2703.5,3.69886]
[1739504454576,0.8223,2704.0,2703.9,0.2685045]
[1739504454787,0.8223,2704.0,2703.3,3.69912]
[1739504455086,3.69825,2704.0,2703.4,3.69901]
[1739504455287,4.52066,2703.9,2703.3,3.69909]
[1739504455451,0.8223,2703.9,2703.4,0.34341025]
[1739504455850,0.8223,2703.9,2703.5,0.2685045]
[1739504456085,1.7116075,2703.9,2703.5,3.9674045]
[1739504456292,0.8223,2703.9,2703.6,3.69875]
[1739504456849,0.8223,2703.9,2703.7,0.2685045]
[1739504457057,0.8223,2703.9,2703.7,3.9670545]
[1739504457456,0.8223,2703.9,2703.8,3.69849]
[1739504457996,0.8223,2703.9,2703.8,3.9669945]
[1739504458499,0.8223,2703.9,2703.8,0.2685045]
[1739504458642,0.8223,2703.9,2703.6,3.69867]
[1739504458992,0.8223,2703.9,2703.7,3.9671345]
[1739504459197,0.8223,2703.9,2703.8,3.69849]
[1739504459503,0.8223,2703.9,2703.8,3.96572664]
[1739504460240,0.8223,2703.9,2703.8,0.26723664]
[1739504460681,0.8223,2703.9,2703.8,3.69849]
[1739504460892,0.7548,2704.3,2704.0,3.69811]
[1739504461093,0.7548,2704.3,2704.1,3.69804]
[1739504461257,0.7548,2704.3,2704.2,3.96587295]
[1739504461455,0.7923,2704.6,2704.2,0.26792295]
[1739504461701,0.7923,2704.6,2704.0,0.7724]
[1739504461702,0.7923,2704.6,2704.3,3.6977]
[1739504461843,0.7923,2704.6,2704.1,3.69799]
[1739504462044,0.7923,2704.5,2704.4,0.267828]
[1739504462376,0.7923,2704.5,2704.2,3.69783]
[1739504462687,0.7923,2704.5,2704.3,3.69777]
[1739504463188,0.7923,2704.5,2704.4,3.69767]
[1739504463987,0.7923,2704.5,2704.4,0.267828]
[1739504464491,0.7923,2704.5,2704.3,3.69779]
[1739504464697,0.7923,2704.5,2704.4,3.69767]
[1739504465047,0.7867,2704.8,2704.6,3.6973]
[1739504465471,0.7867,2704.8,2704.5,3.69747]
[1739504465659,0.7867,2704.8,2704.7,0.26807618]
[1739504465857,0.7867,2704.8,2704.6,3.69731]
[1739504466057,0.7867,2704.8,2704.5,3.69745]
[1739504466689,0.7867,2704.8,2704.6,0.26807618]
[1739504466864,0.7867,2704.8,2704.7,3.69726]
[1739504467299,0.7867,2704.8,2704.7,3.96533618]
[1739504468149,0.7867,2704.8,2704.7,0.26807618]
[1739504468555,0.7867,2704.8,2704.5,3.69745]
[1739504468806,0.7867,2704.8,2704.7,0.26807618]
[1739504469000,0.7867,2704.8,2704.5,3.69745]
[1739504469200,0.7867,2704.8,2704.7,0.26807618]
[1739504469710,0.7867,2704.8,2704.5,7.39489]
[1739504470015,0.7867,2704.8,2704.6,0.26807618]
[1739504470356,0.7867,2704.8,2704.6,3.96534618]
[1739504471195,0.7867,2704.8,2704.6,0.26807618]
[1739504473099,0.7867,2704.8,2704.6,3.96545618]
[1739504473410,0.7867,2704.8,2704.6,0.26807618]
[1739504473802,0.7867,2704.8,2704.4,3.69765]
[1739504474002,0.7867,2704.8,2704.7,0.26807618]
[1739504474202,0.7867,2704.8,2704.5,3.69752]
[1739504474514,0.7867,2704.8,2704.6,0.26807618]
[1739504475417,0.7867,2704.8,2704.6,3.69738]
[1739504475870,0.7867,2704.8,2704.7,0.26807618]
[1739504476274,0.0008,2704.8,2704.7,4.7316268]
[1739504476876,0.0008,2704.8,2704.7,7.91563634]
[1739504480662,0.0008,2704.8,2704.7,8.70793634]
[1739504483377,0.0748035,2704.8,2704.7,4.7316268]
[1739504485575,0.0748035,2704.8,2704.7,11.72773634]
[1739504490069,0.0748035,2704.8,2704.7,8.5437268]
[1739504494603,0.0748035,2704.8,2704.7,11.72773634]
[1739504496466,0.0748035,2704.8,2704.7,7.7316268]
[1739504499914,0.0748035,2704.8,2704.7,6.96533618]
[1739504502987,0.0748035,2704.8,2704.7,3.26807618]
[1739504503186,0.8988035,2704.8,2704.7,0.26807618]
[1739504503726,0.8988035,2704.8,2704.7,0.25730569]
[1739504504033,4.70513724,2704.8,2704.4,3.69757]
[1739504504205,4.70513724,2704.8,2704.7,0.25730569]
[1739504504399,4.70513724,2704.8,2704.4,3.69757]
[1739504504609,4.70513724,2704.8,2704.7,0.25740056]
[1739504504913,4.70513724,2704.8,2704.7,3.69726]
[1739504505330,4.70513724,2704.8,2704.7,3.95483572]
[1739504506058,0.8988035,2704.8,2704.7,3.95483572]
[1739504507428,3.1228035,2704.8,2704.7,3.95483572]
[1739504507632,0.8988035,2704.8,2704.7,3.95483572]
[1739504507937,0.8988035,2704.8,2704.7,0.25757572]
[1739504508233,0.8988035,2704.8,2704.7,3.95483572]
[1739504508910,0.0748035,2704.8,2704.7,3.95483572]
[1739504509310,0.9040035,2704.8,2704.7,3.95483572]
[1739504509631,0.9040035,2704.8,2704.7,0.25757572]
[1739504509805,3.93213782,2704.8,2704.7,0.25757572]
[1739504510204,3.93213782,2704.8,2704.7,3.69726]
[1739504510411,0.9040035,2704.8,2704.7,3.95482113]
[1739504511235,0.0748035,2704.8,2704.7,3.95482113]
[1739504511434,0.0748035,2704.8,2704.7,6.95482113]
[1739504513534,0.8925035,2704.8,2704.7,3.25756113]
[1739504514034,0.8925035,2704.8,2704.7,6.95482113]
[1739504514636,0.8925035,2704.8,2704.7,3.25756113]
[1739504516236,0.8925035,2704.8,2704.7,6.95482113]
[1739504517221,0.0748035,2704.8,2704.7,6.95482113]
[1739504517820,0.0748035,2704.8,2704.7,6.69726]
[1739504518230,0.0748035,2704.8,2704.7,6.95482841]
[1739504522335,0.0748035,2704.8,2704.7,8.09643925]
[1739504525217,0.0748035,2704.8,2704.7,8.84837628]
[1739504526344,0.8620035,2704.8,2704.7,6.95482841]
[1739504528334,0.8620035,2704.8,2704.7,0.25756841]
[1739504528736,0.8620035,2704.8,2704.7,3.69726]
[1739504528932,0.8620035,2704.8,2704.7,3.94629377]
[1739504531850,0.0748035,2704.8,2704.7,6.94629377]
[1739504533443,0.0748035,2704.8,2704.7,3.94629377]
[1739504533645,0.8446035,2704.8,2704.7,3.94629377]
[1739504534397,0.8446035,2704.8,2704.7,0.24903377]
[1739504534730,0.8446035,2704.8,2704.7,3.94629377]
[1739504535054,0.0748035,2704.8,2704.7,3.94629377]
[1739504535655,0.0748035,2704.8,2704.7,6.94629377]
[1739504536014,0.0748035,2704.8,2704.7,7.72599377]
[1739504536635,0.0748035,2704.8,2704.7,6.94629377]
[1739504540788,0.0748035,2704.8,2704.7,8.82775515]
[1739504541996,0.0748035,2704.8,2704.7,8.01065515]
[1739504542136,0.0748035,2704.8,2704.7,6.94629377]
[1739504543353,0.0748035,2704.8,2704.7,3.94629377]
[1739504543354,0.8633035,2704.8,2704.7,3.94629377]
[1739504544184,0.0748035,2704.8,2704.7,3.94629377]
[1739504544854,0.0748035,2704.8,2704.7,6.94629377]
[1739504545785,0.0748035,2704.8,2704.7,7.74589377]
[1739504546089,0.0748035,2704.8,2704.7,8.89022315]
[1739504549289,0.0748035,2704.8,2704.7,9.64807657]
[1739504553374,0.0748035,2704.8,2704.7,8.84847657]
[1739504558619,0.0748035,2704.8,2704.7,7.70414719]
[1739504569676,0.0748035,2704.8,2704.7,8.49444719]
[1739504574490,0.0748035,2704.8,2704.7,7.70414719]
[1739504577285,0.0748035,2704.8,2704.7,7.70414719]
[1739504577719,0.8893035,2704.8,2704.7,6.94629377]
[1739504582220,0.0748035,2704.8,2704.7,6.94629377]
[1739504582581,0.0748035,2704.8,2704.7,6.69726]
[1739504583010,0.0748035,2704.8,2704.7,6.94403667]
[1739504587925,0.0748035,2704.8,2704.7,3.94403667]
[1739504588123,3.88113724,2704.8,2704.7,3.69726]
[1739504589126,3.88113724,2704.8,2704.7,3.94412425]
[1739504589499,0.0748035,2704.8,2704.7,3.94412425]
[1739504590538,0.0748035,2704.8,2704.7,3.69726]
[1739504591592,0.0748035,2704.8,2704.7,3.94412425]
[1739504592234,0.0748035,2704.8,2704.7,0.24686425]
[1739504592456,0.0748035,2704.8,2704.7,3.94412425]
[1739504592656,0.0748035,2704.8,2704.7,3.69726]
[1739504592820,0.0748035,2704.8,2704.7,3.94412425]
[1739504593363,0.0748035,2704.8,2704.7,0.24686425]
[1739504593569,3.88113724,2704.8,2704.7,0.24686425]
[1739504593853,3.88113724,2704.8,2704.6,3.69732]
[1739504594059,3.88113724,2704.8,2704.7,0.24686425]
[1739504595439,4.66683724,2704.8,2704.7,0.24686425]
[1739504596855,6.20400936,2704.8,2704.7,0.24686425]
[1739504597025,6.20400936,2704.8,2704.5,3.69745]
[1739504597225,0.64720094,2704.7,2704.5,3.69745]
[1739504597465,0.72120444,2704.7,2704.6,0.24728756]
[1739504598717,1.50130444,2704.7,2704.0,0.7787]
[1739504598917,0.8541035,2704.7,2704.6,3.6974]
[1739504599115,0.8541035,2704.7,2704.6,3.94469486]
[1739504602359,0.0740035,2704.7,2704.6,3.94469486]
[1739504603458,0.0740035,2704.7,2704.6,0.24729486]
[1739504603868,0.0740035,2704.7,2704.5,3.69745]
[1739504604030,0.0740035,2704.7,2704.6,0.24729486]
[1739504604431,0.8391035,2704.7,2704.6,0.24729486]
[1739504605287,0.8391035,2704.7,2704.4,3.69756]
[1739504605288,0.8391035,2704.7,2704.5,3.69744]
[1739504605769,0.8391035,2704.7,2704.6,3.94469486]
[1739504606729,0.8391035,2704.7,2704.6,4.19349486]
[1739504607126,0.8391035,2704.7,2704.6,0.49609486]
[1739504608952,1.45509385,2704.7,2704.6,0.49609486]
[1739504609359,1.45509385,2704.7,2704.6,0.2488]
[1739504609781,1.45509385,2704.7,2704.6,0.49609486]
[1739504612666,1.45509385,2704.7,2704.6,4.19349486]
[1739504614454,1.45509385,2704.7,2704.6,0.49609486]
[1739504617295,1.45509385,2704.7,2704.6,0.2488]
[1739504622455,1.45509385,2704.7,2704.6,0.49638686]
[1739504622859,1.45509385,2704.7,2704.6,0.2488]
[1739504623094,1.45509385,2704.7,2704.6,0.49638686]
[1739504623399,1.45509385,2704.7,2704.6,0.2488]
[1739504623778,1.45509385,2704.7,2704.6,0.49638686]
[1739504624794,1.45509385,2704.7,2704.6,0.2488]
[1739504624994,1.45509385,2704.7,2704.6,0.49640876]
[1739504625181,1.45509385,2704.7,2704.6,0.2488]
[1739504625907,6.77509385,2704.7,2704.6,0.2488]
[1739504629707,8.99809385,2704.7,2704.6,0.2488]
[1739504629912,6.77509385,2704.7,2704.6,0.2488]
[1739504636821,5.3940035,2704.7,2704.6,3.9462]
[1739504637245,5.3940035,2704.7,2704.6,4.19380878]
[1739504637381,5.3940035,2704.7,2704.6,3.9462]
[1739504637605,5.3940035,2704.7,2704.6,0.2488]
[1739504637950,0.0740035,2704.7,2704.6,4.19380878]
[1739504639305,0.0740035,2704.7,2704.6,0.49640878]
[1739504639520,0.8979035,2704.7,2704.6,0.49640878]
[1739504639821,1.51119506,2704.7,2704.6,0.49640878]
[1739504640175,1.51119506,2704.7,2704.6,0.2488]
[1739504642028,0.68729506,2704.7,2704.6,0.2488]
[1739504642535,0.0740035,2704.7,2704.6,0.2488]
[1739504642745,0.0740035,2704.7,2704.6,4.19380878]
[1739504642930,0.0740035,2704.7,2704.6,0.49640878]
[1739504644817,0.0740035,2704.7,2704.6,0.2488]
[1739504645017,0.0740035,2704.7,2704.6,0.49640878]
[1739504645583,0.0740035,2704.7,2704.6,4.19380878]
[1739504645945,0.0740035,2704.7,2704.6,0.49640878]
[1739504646554,0.0740035,2704.7,2704.6,4.19380878]
[1739504646845,0.0740035,2704.7,2704.6,0.49640878]
[1739504647269,0.0740035,2704.7,2704.6,0.2488]
[1739504648390,0.0740035,2704.7,2704.6,0.49638685]
[1739504650468,0.0740035,2704.7,2704.6,4.19378685]
[1739504655641,0.0740035,2704.7,2704.6,0.49638685]
[1739504655980,0.0740035,2704.7,2704.6,4.19378685]
[1739504663194,3.5e-06,2704.7,2704.6,10.41580166]
[1739504663364,48.46019061,2705.0,2704.9,4.51589]
[1739504663706,48.46019061,2705.0,2704.9,9.05306212]
[1739504663908,48.46019061,2705.0,2704.9,9.3004592]
[1739504664058,48.46019061,2705.0,2704.9,10.4955202]
[1739504665112,48.46019061,2705.0,2704.9,8.95834808]
[1739504665612,0.93043112,2705.0,2704.9,7.97078708]
[1739504665768,0.1492138,2707.0,2706.9,3.69426]
[1739504666300,0.1492138,2707.0,2706.9,3.94070125]
[1739504666666,0.1492138,2707.0,2706.9,0.24644125]
[1739504666865,0.1492138,2707.0,2706.8,3.69438]
[1739504667279,0.1492138,2707.0,2706.9,0.24644125]
[1739504667708,0.1492138,2707.0,2706.9,3.69426]
[1739504668127,0.1492138,2707.0,2706.9,3.94070125]
[1739504670224,0.1492138,2707.0,2706.9,0.24644125]
[1739504670611,0.1492138,2707.0,2706.7,6.69452]
[1739504670810,0.1492138,2707.0,2706.9,0.24488032]
[1739504672186,0.9042138,2707.0,2706.9,0.24488032]
[1739504672392,0.9042138,2707.0,2706.2,0.3845]
[1739504672590,4.5984338,2707.0,2706.9,0.23556023]
[1739504672805,6.2762737,2707.0,2706.3,3.69505]
[1739504673109,6.2762737,2707.0,2706.4,0.23556023]
[1739504673622,3.69435,2706.9,2706.4,0.23556023]
[1739504674037,11.5962737,2707.0,2706.2,3.69521]
[1739504674185,7.9020537,2707.0,2706.5,3.93048163]
[1739504674383,7.9020537,2707.0,2706.5,3.69474]
[1739504674586,7.9020537,2707.0,2706.6,3.93039163]
[1739504674786,6.2242138,2707.0,2706.6,3.93039163]
[1739504675187,5.4692138,2707.0,2706.6,0.23574163]
[1739504675402,0.1492138,2707.0,2706.9,3.69426]
[1739504676146,0.1492138,2707.0,2706.9,3.93000163]
[1739504676607,0.1492138,2707.0,2706.9,0.23574163]
[1739504676946,0.1492138,2707.0,2706.7,7.38884]
[1739504677246,0.1492138,2707.0,2706.9,0.23574163]
[1739504677414,0.1492138,2707.0,2706.7,3.6944]
[1739504677415,0.1492138,2707.0,2706.8,3.69427]
[1739504677603,0.1492138,2707.0,2706.9,0.23574163]
[1739504677806,0.1492138,2707.0,2706.9,3.93000163]
[1739504678207,0.1492138,2707.0,2706.9,0.23574163]
[1739504678403,1.31062118,2707.0,2706.9,0.23574163]
[1739504678642,1.31062118,2707.0,2706.5,3.69476]
[1739504678845,0.9263138,2707.0,2706.9,0.23574163]
[1739504679334,0.9263138,2707.0,2706.7,3.69445]
[1739504679545,0.9263138,2707.0,2706.9,0.23574163]
[1739504679719,0.9263138,2707.0,2706.5,7.3894]
[1739504679920,0.9263138,2707.0,2706.9,0.23574163]
[1739504680245,0.9263138,2707.0,2706.6,3.69458]
[1739504680444,0.9263138,2707.0,2706.9,0.23574163]
[1739504680629,0.9263138,2707.0,2706.6,3.69465]
[1739504680944,0.9263138,2707.0,2706.5,7.38939]
[1739504681244,0.9263138,2707.0,2706.7,3.93017163]
[1739504681413,0.9263138,2707.0,2706.7,3.69443]
[1739504681602,0.9263138,2707.0,2706.8,0.23574163]
[1739504681806,0.9263138,2707.0,2706.5,7.38936]
[1739504682023,0.9263138,2707.0,2706.9,0.23574163]
[1739504682240,1.38833018,2707.0,2706.5,3.69467]
[1739504682402,0.1492138,2707.0,2706.9,0.23574163]
[1739504682611,0.1492138,2707.0,2706.7,3.6945]
[1739504682842,0.1492138,2707.0,2706.9,3.93000163]
[1739504683141,0.1492138,2707.0,2706.9,3.69426]
[1739504683347,0.1492138,2707.0,2706.9,3.93008145]
[1739504684010,0.1492138,2707.0,2706.9,4.31458145]
[1739504686431,0.1492138,2707.0,2706.9,7.31458145]
[1739504688599,0.1492138,2707.0,2706.9,0.23582145]
[1739504688805,0.1492138,2707.0,2706.7,3.69442]
[1739504688944,0.7914,2706.9,2706.5,3.69475]
[1739504689150,0.7914,2706.9,2706.3,3.69504]
[1739504689403,4.48575,2706.9,2706.3,3.69504]
[1739504689563,5.85066738,2706.9,2706.3,3.69504]
[1739504689758,3.69449,2706.8,2706.1,3.69523]